fUSD/lending_fUSD_20250314
["ID","MTS","AMOUNT","RATE_DAILY","PERIOD"]
[356132331,1741936940432,-56.81820418,0.00022082,3]
[356132332,1741936940489,-443.18179582,0.00022082,3]
[356132333,1741936940499,-223.32820418,0.00022082,3]
[356132334,1741936940511,-276.67179582,0.00022082,3]
[356132335,1741936940520,-223.32820418,0.00022082,3]
[356132336,1741936940532,-276.67179582,0.00022082,3]
[356132337,1741936940542,-223.32820418,0.00022082,3]
[356132338,1741936940553,-276.67179582,0.00022082,3]
[356132339,1741936940563,-500.0,0.00022082,3]
[356132340,1741936940572,-10.48820418,0.00022082,3]
[356132341,1741936940584,-489.51179582,0.00022082,3]
[356132342,1741936940594,-500.0,0.00022082,3]
[356132343,1741936940604,-285.90419953,0.00022082,3]
[356132344,1741936940613,-20.56400465,0.00022082,3]
[356132345,1741936940625,-479.43599535,0.00022082,3]
[356132346,1741936940635,-20.56400465,0.00022082,3]
[356132347,1741936940650,-500.0,0.00021944,3]
[356132348,1741936940662,-1.58632977,0.00021944,3]
[356132349,1741936940672,-797.18599535,0.00022082,3]
[356132350,1741936940683,-490.79767488,0.00022082,3]
[356132351,1741936940695,-9.20232512,0.00022082,3]
[356132352,1741936940704,-820.47,0.00022082,3]
[356132353,1741936940714,-208.10767488,0.00022082,3]
[356132354,1741936940726,-505.52232512,0.00022082,3]
[356132355,1741936940736,-151.0,0.00022082,7]
[356132356,1741936940745,-428.27767488,0.00022082,3]
[356132357,1741936940756,-71.72232512,0.00022082,3]
[356132358,1741936940767,-428.27767488,0.00022082,3]
[356132359,1741936940779,-71.72232512,0.00022082,3]
[356132360,1741936940788,-428.27767488,0.00022082,3]
[356132361,1741936940800,-71.72232512,0.00022082,3]
[356132362,1741936940809,-500.0,0.00022082,3]
[356132363,1741936940818,-142.19767488,0.00022082,3]
[356132364,1741936940830,-357.80232512,0.00022082,3]
[356132365,1741936940840,-142.19767488,0.00022082,3]
[356132366,1741936940851,-357.80232512,0.00022082,3]
[356132367,1741936940861,-142.19767488,0.00022082,3]
[356132368,1741936940872,-357.80232512,0.00022082,3]
[356132369,1741936940882,-412.21767488,0.00022082,3]
[356132370,1741936940893,-87.78232512,0.00022082,3]
[356132371,1741936940902,-412.21767488,0.00022082,3]
[356132372,1741936940914,-151.0,0.00022082,3]
[356132373,1741936940925,-433.64232512,0.00022082,3]
[356132374,1741936940935,-66.35767488,0.00022082,3]
[356132375,1741936940947,-433.64232512,0.00022082,3]
[356132376,1741936940956,-66.35767488,0.00022082,3]
[356132377,1741936940968,-433.64232512,0.00022082,3]
[356132378,1741936940977,-66.35767488,0.00022082,3]
[356132379,1741936940991,-1013.77,0.00022082,3]
[356132380,1741936941002,-151.0,0.00022082,3]
[356132381,1741936941014,-85.98232512,0.00022082,3]
[356132382,1741936941023,-414.01767488,0.00022082,3]
[356132383,1741936941035,-85.98232512,0.00022082,3]
[356132384,1741936941044,-414.01767488,0.00022082,3]
[356132385,1741936941055,-500.0,0.00022082,3]
[356132386,1741936941066,-91.87232512,0.00022082,3]
[356132387,1741936941075,-408.12767488,0.00022082,3]
[356132388,1741936941098,-91.87232512,0.00022082,3]
[356132389,1741936941107,-500.0,0.00022082,3]
[356132390,1741936941116,-155.11767488,0.00022082,3]
[356132391,1741936941149,-344.88232512,0.00022082,3]
[356132392,1741936941158,-155.11767488,0.00022082,3]
[356132393,1741936941170,-344.88232512,0.00022082,3]
[356132394,1741936941179,-155.11767488,0.00022082,3]
[356132395,1741936941190,-344.88232512,0.00022082,3]
[356132396,1741936941199,-318.01767488,0.00022082,3]
[356132397,1741936941211,-229.35232512,0.00022082,3]
[356132398,1741936941219,-270.64767488,0.00022082,3]
[356132399,1741936941231,-229.35232512,0.00022082,3]
[356132400,1741936941240,-120.44145305,0.00022082,3]
[356132401,1741936941251,-379.55854695,0.00022082,3]
[356132402,1741936941260,-120.44145305,0.00022082,3]
[356132403,1741936941271,-406.66854695,0.00022082,3]
[356132404,1741936941280,-365.40145305,0.00022082,3]
[356132405,1741936941291,-134.59854695,0.00022082,3]
[356132406,1741936941300,-365.40145305,0.00022082,3]
[356132407,1741936941311,-134.59854695,0.00022082,3]
[356132408,1741936941321,-365.40145305,0.00022082,3]
[356132409,1741936941335,-134.59854695,0.00022082,3]
[356132410,1741936941344,-16.40145305,0.00022082,3]
[356132411,1741936941355,-483.59854695,0.00022082,3]
[356132412,1741936941364,-74.00145305,0.00022082,3]
[356132413,1741936941376,-425.99854695,0.00022082,3]
[356132414,1741936941385,-490.26145305,0.00022082,3]
[356132415,1741936941400,-9.73854695,0.00022082,3]
[356132416,1741936941409,-500.0,0.00022082,3]
[356132417,1741936941418,-141.66145305,0.00022082,3]
[356132418,1741936941429,-500.0,0.00022082,3]
[356132419,1741936941440,-28.27854695,0.00022082,3]
[356132420,1741936941449,-471.72145305,0.00022082,3]
[356132421,1741936941461,-28.27854695,0.00022082,3]
[356132422,1741936941470,-471.72145305,0.00022082,3]
[356132423,1741936941481,-28.27854695,0.00022082,3]
[356132424,1741936941490,-471.72145305,0.00022082,3]
[356132425,1741936941502,-500.0,0.00022082,3]
[356132426,1741936941513,-413.85854695,0.00022082,3]
[356132427,1741936941522,-237.25145305,0.00022082,3]
[356132428,1741936941533,-262.74854695,0.00022082,3]
[356132429,1741936941542,-237.25145305,0.00022082,3]
[356132430,1741936941554,-262.74854695,0.00022082,3]
[356132431,1741936941563,-237.25145305,0.00022082,3]
[356132432,1741936941574,-262.74854695,0.00022082,3]
[356132433,1741936941583,-257.51130951,0.00022082,3]
[356132434,1741936941760,-242.48869049,0.00022082,3]
[356132435,1741936941772,-500.0,0.00022082,3]
[356132436,1741936941782,-500.0,0.00022082,3]
[356132437,1741936941791,-118.34130951,0.00022082,3]
[356132438,1741936941803,-500.0,0.00022082,3]
[356132439,1741936941814,-59.13869049,0.00022082,3]
[356132440,1741936941823,-440.86130951,0.00022082,3]
[356132441,1741936941835,-59.13869049,0.00022082,3]
[356132442,1741936941844,-440.86130951,0.00022082,3]
[356132443,1741936941857,-59.13869049,0.00022082,3]
[356132444,1741936941867,-440.86130951,0.00022082,3]
[356132445,1741936941881,-77.04869049,0.00022082,3]
[356132446,1741936941892,-422.95130951,0.00022082,3]
[356132447,1741936941906,-77.04869049,0.00022082,3]
[356132448,1741936941918,-73.95130951,0.00022082,3]
[356132449,1741936941937,-655.53,0.00022082,3]
[356132450,1741936941951,-68.47869049,0.00022082,3]
[356132451,1741936941962,-500.0,0.00022082,3]
[356132452,1741936941971,-29.82130951,0.00022082,3]
[356132453,1741936941984,-506.35869049,0.00022082,3]
[356132454,1741936941994,-500.0,0.00022082,3]
[356132455,1741936942004,-132.62130951,0.00022082,3]
[356132456,1741936942016,-367.37869049,0.00022082,3]
[356132457,1741936942025,-132.62130951,0.00022082,3]
[356132458,1741936942037,-425.71869049,0.00022082,3]
[356132459,1741936942046,-214.38130951,0.00022082,3]
[356132460,1741936942057,-285.61869049,0.00022082,3]
[356132461,1741936942066,-214.38130951,0.00022082,3]
[356132462,1741936942079,-322.96869049,0.00022082,3]
[356132463,1741936942088,-82.28778457,0.00022082,3]
[356132464,1741936942103,-417.71221543,0.00022082,3]
[356132465,1741936942113,-643.93,0.00022082,3]
[356132466,1741936942122,-171.09778457,0.00022082,3]
[356132467,1741936942149,-500.0,0.00021917,3]
[356132468,1741936942172,-500.0,0.00021998,2]
[356132469,1741936942188,-221.80337206,0.00021998,2]
[356132470,1741936942197,-278.19662794,0.00022082,3]
[356132471,1741936942217,-50.70558749,0.00022082,3]
[356132472,1741936942226,-449.29441251,0.00022082,3]
[356132473,1741936942251,-50.70558749,0.00022082,3]
[356132474,1741936942260,-449.29441251,0.00022082,3]
[356132475,1741936942278,-50.70558749,0.00022082,3]
[356132476,1741936942288,-449.29441251,0.00022082,3]
[356132477,1741936942304,-50.70558749,0.00022082,3]
[356132478,1741936942314,-449.29441251,0.00022082,3]
[356132479,1741936942331,-500.0,0.00021998,2]
[356132480,1741936942341,-50.70558749,0.00022082,3]
[356132481,1741936942350,-50.18441251,0.00022082,3]
[356132482,1741936942363,-449.81558749,0.00022082,3]
[356132483,1741936942373,-50.18441251,0.00022082,3]
[356132484,1741936942388,-449.81558749,0.00022082,3]
[356132485,1741936942398,-50.18441251,0.00022082,3]
[356132486,1741936942410,-449.81558749,0.00022082,3]
[356132487,1741936942419,-50.18441251,0.00022082,3]
[356132488,1741936942431,-483.96558749,0.00022082,3]
[356132489,1741936942440,-16.03441251,0.00022082,3]
[356132490,1741936942456,-483.96558749,0.00022082,3]
[356132491,1741936942465,-16.03441251,0.00022082,3]
[356132492,1741936942482,-832.97558749,0.00022082,3]
[356132493,1741936942491,-109.38441251,0.00022082,3]
[356132494,1741936942503,-390.61558749,0.00022082,3]
[356132495,1741936942513,-109.38441251,0.00022082,2]
[356132496,1741936942524,-390.61558749,0.00022082,2]
[356132497,1741936942535,-109.38441251,0.00022082,3]
[356132498,1741936942547,-390.61558749,0.00022082,3]
[356132499,1741936942557,-500.0,0.00022082,3]
[356132500,1741936942567,-111.75441251,0.00022082,3]
[356132501,1741936942579,-500.0,0.00022082,3]
[356132502,1741936942591,-244.43558749,0.00022082,3]
[356132503,1741936942600,-255.56441251,0.00022082,3]
[356132504,1741936942611,-244.43558749,0.00022082,3]
[356132505,1741936942621,-392.27441251,0.00022082,3]
[356132506,1741936942633,-527.1,0.00022082,3]
[356132507,1741936942644,-122.27558749,0.00022082,3]
[356132508,1741936942654,-377.72441251,0.00022082,3]
[356132509,1741936942666,-122.27558749,0.00022082,3]
[356132510,1741936942676,-385.63441251,0.00022082,3]
[356132511,1741936942695,-598.02558749,0.00022082,3]
[356132512,1741936942705,-500.0,0.00022082,3]
[356132513,1741936942715,-23.90441251,0.00022082,3]
[356132514,1741936942727,-476.09558749,0.00022082,3]
[356132515,1741936942737,-262.08441251,0.00022082,3]
[356132516,1741936942752,-205.9,0.00021945,3]
[356132517,1741936942762,-294.1,0.00022082,3]
[356132518,1741936942774,-179.16558749,0.00022082,3]
[356132519,1741936942784,-666.51,0.00022082,3]
[356132520,1741936942793,-236.59441251,0.00022082,3]
[356132521,1741936942805,-263.40558749,0.00022082,3]
[356132522,1741936942814,-237.66441251,0.00022082,3]
[356132523,1741936942826,-262.33558749,0.00022082,3]
[356132524,1741936942836,-132.99557112,0.00022082,3]
[356132525,1741936942848,-500.0,0.00022082,3]
[356132526,1741936942859,-154.16442888,0.00022082,3]
[356132527,1741936942869,-345.83557112,0.00022082,3]
[356132528,1741936942881,-615.09417631,0.00022082,3]
[356132529,1741936942895,-335.05025257,0.00022082,3]
[356132530,1741936942905,-457.51974743,0.00022082,3]
[356132531,1741936942917,-42.48025257,0.00022082,3]
[356132532,1741936942926,-500.0,0.00022082,3]
[356132533,1741936942935,-104.19974743,0.00022082,3]
[356132534,1741936942946,-500.0,0.00022082,3]
[356132535,1741936942959,-501.06,0.00022082,3]
[356132536,1741936942970,-184.31025257,0.00022082,3]
[356132537,1741936942980,-1037.78,0.00022082,3]
[356132538,1741936942989,-15.84974743,0.00022082,3]
[356132539,1741936943001,-809.56,0.00022082,3]
[356132540,1741936943012,-259.39025257,0.00022082,3]
[356132541,1741936943022,-500.0,0.00022082,3]
[356132542,1741936943031,-500.0,0.00022082,3]
[356132543,1741936943041,-180.73974743,0.00022082,3]
[356132544,1741936943052,-500.0,0.00022082,3]
[356132545,1741936943064,-33.18025257,0.00022082,3]
[356132546,1741936943073,-229.44973237,0.00022082,3]
[356132547,1741936943083,-250.29001506,0.00022082,3]
[356132548,1741936943094,-249.70998494,0.00022082,3]
[356132549,1741936943103,-324.38001506,0.00022082,3]
[356132550,1741936943115,-445.63998494,0.00022082,3]
[356132551,1741936943124,-54.36001506,0.00022082,3]
[356132552,1741936943136,-445.63998494,0.00022082,3]
[356132553,1741936943146,-88.83001506,0.00022082,3]
[356132554,1741936943158,-411.16998494,0.00022082,3]
[356132555,1741936943167,-88.83001506,0.00022082,3]
[356132556,1741936943179,-411.16998494,0.00022082,3]
[356132557,1741936943189,-88.83001506,0.00022082,7]
[356132558,1741936943200,-62.16998494,0.00022082,7]
[356132559,1741936943210,-437.83001506,0.00022082,3]
[356132560,1741936943222,-500.0,0.00022082,3]
[356132561,1741936943233,-75.93998494,0.00022082,3]
[356132562,1741936943242,-97.59434906,0.00022082,3]
[356132563,1741936943254,-402.40565094,0.00022082,3]
[356132564,1741936943263,-97.59434906,0.00022082,3]
[356132565,1741936943274,-402.40565094,0.00022082,3]
[356132566,1741936943285,-97.59434906,0.00022082,3]
[356132567,1741936943300,-173.534334,0.00022082,3]
[356132568,1741936943312,-228.87131694,0.00022082,3]
[356132569,1741936943321,-271.12868306,0.00022082,3]
[356132570,1741936943333,-228.87131694,0.00022082,3]
[356132571,1741936943343,-271.12868306,0.00022082,3]
[356132572,1741936943354,-475.86131694,0.00022082,3]
[356132573,1741936943364,-24.13868306,0.00022082,3]
[356132574,1741936943375,-475.86131694,0.00022082,3]
[356132575,1741936943384,-24.13868306,0.00022082,3]
[356132576,1741936943396,-475.86131694,0.00022082,3]
[356132577,1741936943405,-24.13868306,0.00022082,3]
[356132578,1741936943416,-500.0,0.00022082,3]
[356132579,1741936943427,-138.76131694,0.00022082,3]
[356132580,1741936943436,-361.23868306,0.00022082,3]
[356132581,1741936943448,-138.76131694,0.00022082,3]
[356132582,1741936943457,-361.23868306,0.00022082,3]
[356132583,1741936943468,-138.76131694,0.00022082,3]
[356132584,1741936943478,-361.23868306,0.00022082,3]
[356132585,1741936943490,-138.76131694,0.00022082,3]
[356132586,1741936943500,-44.0184377,0.00022082,3]
[356132587,1741936943512,-513.5815623,0.00022082,3]
[356132588,1741936943521,-556.6184377,0.00022082,3]
[356132589,1741936943533,-359.6415623,0.00022082,3]
[356132590,1741936943543,-140.3584377,0.00022082,3]
[356132591,1741936943554,-511.0415623,0.00022082,3]
[356132592,1741936943563,-600.03963443,0.00022082,3]
[356132593,1741936943572,-500.0,0.00022082,3]
[356132594,1741936943581,-424.24880327,0.00022082,3]
[356132595,1741936943593,-75.75119673,0.00022082,3]
[356132596,1741936943602,-500.0,0.00022082,3]
[356132597,1741936943611,-488.09880327,0.00022082,3]
[356132598,1741936943623,-11.90119673,0.00022082,3]
[356132599,1741936943631,-651.11,0.00022082,3]
[356132600,1741936943641,-443.90880327,0.00022082,3]
[356132601,1741936943652,-56.09119673,0.00022082,3]
[356132602,1741936943662,-443.90880327,0.00022082,3]
[356132603,1741936943673,-13.3638507,0.00022082,3]
[356132604,1741936943686,-944.3161493,0.00022082,3]
[356132605,1741936943697,-416.5138507,0.00022082,3]
[356132606,1741936943707,-83.4861493,0.00022082,3]
[356132607,1741936943719,-416.5138507,0.00022082,3]
[356132608,1741936943730,-83.4861493,0.00022082,3]
[356132609,1741936943745,-416.5138507,0.00022082,3]
[356132610,1741936943755,-83.4861493,0.00022082,3]
[356132611,1741936943767,-416.5138507,0.00022082,3]
[356132612,1741936943777,-83.4861493,0.00022082,3]
[356132613,1741936943789,-416.5138507,0.00022082,3]
[356132614,1741936943799,-83.4861493,0.00022082,7]
[356132615,1741936943811,-79.0501887,0.00022082,7]
[356132616,1741936943821,-500.0,0.00022082,3]
[356132617,1741936943830,-170.4898113,0.00022082,3]
[356132618,1741936943842,-485.0401887,0.00022082,3]
[356132619,1741936943852,-14.9598113,0.00022082,3]
[356132620,1741936943863,-500.0,0.00022082,3]
[356132621,1741936943878,-500.0,0.00021917,3]
[356132622,1741936943889,-83.3401887,0.00022082,3]
[356132623,1741936943899,-817.2798113,0.00022082,3]
[356132624,1741936943910,-321.7001887,0.00022082,3]
[356132625,1741936943920,-42.85193753,0.00022082,3]
[356132626,1741936943931,-457.14806247,0.00022082,3]
[356132627,1741936943940,-640.1,0.00022082,3]
[356132628,1741936943951,-86.15193753,0.00022082,3]
[356132629,1741936943966,-500.0,0.00021944,3]
[356132630,1741936943977,-0.90499742,0.00021944,3]
[356132631,1741936943986,-353.99235058,0.00022082,3]
[356132632,1741936943998,-59.85571189,0.00022082,3]
[356132633,1741936944007,-1232.74,0.00022082,3]
[356132634,1741936944017,-500.0,0.00022082,3]
[356132635,1741936944026,-500.0,0.00022082,3]
[356132636,1741936944036,-170.46428811,0.00022082,3]
[356132637,1741936944048,-329.53571189,0.00022082,3]
[356132638,1741936944057,-25.36163611,0.00022082,3]
[356132639,1741936944068,-474.63836389,0.00022082,3]
[356132640,1741936944077,-25.36163611,0.00022082,3]
[356132641,1741936944097,-474.63836389,0.00022082,3]
[356132642,1741936944106,-25.36163611,0.00022082,3]
[356132643,1741936944117,-474.63836389,0.00022082,3]
[356132644,1741936944127,-433.03163611,0.00022082,3]
[356132645,1741936944139,-167.85836389,0.00022082,3]
[356132646,1741936944148,-500.0,0.00022082,3]
[356132647,1741936944157,-500.0,0.00022082,3]
[356132648,1741936944166,-500.0,0.00022082,3]
[356132649,1741936944175,-83.68163611,0.00022082,3]
[356132650,1741936944187,-416.31836389,0.00022082,3]
[356132651,1741936944196,-243.21163611,0.00022082,3]
[356132652,1741936944207,-256.78836389,0.00022082,3]
[356132653,1741936944216,-243.21163611,0.00022082,3]
[356132654,1741936944228,-500.0,0.00022082,3]
[356132655,1741936944239,-199.14836389,0.00022082,3]
[356132656,1741936944248,-300.85163611,0.00022082,3]
[356132657,1741936944260,-199.14836389,0.00022082,3]
[356132658,1741936944270,-300.85163611,0.00022082,3]
[356132659,1741936944281,-199.14836389,0.00022082,3]
[356132660,1741936944291,-438.95163611,0.00022082,3]
[356132661,1741936944303,-563.41836389,0.00022082,3]
[356132662,1741936944313,-12.66163611,0.00022082,3]
[356132663,1741936944324,-487.33836389,0.00022082,3]
[356132664,1741936944334,-12.66163611,0.00022082,3]
[356132665,1741936944345,-500.0,0.00022082,3]
[356132666,1741936944361,-124.04836389,0.00022082,3]
[356132667,1741936944527,-375.95163611,0.00022082,3]
[356132668,1741936944539,-131.95836389,0.00022082,3]
[356132669,1741936944550,-473.55163611,0.00022082,3]
[356132670,1741936944561,-26.44836389,0.00022082,3]
[356132671,1741936944571,-473.55163611,0.00022082,3]
[356132672,1741936944583,-264.62836389,0.00022082,3]
[356132673,1741936944592,-235.37163611,0.00022082,3]
[356132674,1741936944603,-500.0,0.00022082,3]
[356132675,1741936944614,-346.89836389,0.00022082,3]
[356132676,1741936944623,-153.10163611,0.00022082,3]
[356132677,1741936944635,-347.96836389,0.00022082,3]
[356132678,1741936944643,-152.03163611,0.00022082,3]
[356132679,1741936944655,-347.96836389,0.00022082,3]
[356132680,1741936944664,-278.91097111,0.00022082,3]
[356132681,1741936944676,-500.0,0.00022082,3]
[356132682,1741936944692,-13.65902889,0.00022082,3]
[356132683,1741936944701,-613.22030611,0.00022082,3]
[356132684,1741936944712,-33.45969389,0.00022082,3]
[356132685,1741936944723,-466.54030611,0.00022082,3]
[356132686,1741936944734,-771.39969389,0.00022082,3]
[356132687,1741936944743,-499.12030611,0.00022082,3]
[356132688,1741936944754,-500.0,0.00022082,3]
[356132689,1741936944765,-441.00969389,0.00022082,3]
[356132690,1741936944775,-58.99030611,0.00022082,3]
[356132691,1741936944786,-441.00969389,0.00022082,3]
[356132692,1741936944796,-121.39068664,0.00022082,3]
[356132693,1741936944807,-150.0,0.00022082,3]
[356132694,1741936944819,-241.52931336,0.00022082,3]
[356132695,1741936944829,-280.66722651,0.00022082,3]
[356132696,1741936944841,-52.2773606,0.00022082,3]
[356132697,1741936944850,-447.7226394,0.00022082,3]
[356132698,1741936944862,-126.3673606,0.00022082,3]
[356132699,1741936944872,-373.6326394,0.00022082,3]
[356132700,1741936944883,-126.3673606,0.00022082,3]
[356132701,1741936944892,-373.6326394,0.00022082,3]
[356132702,1741936944903,-160.8373606,0.00022082,3]
[356132703,1741936944913,-339.1626394,0.00022082,3]
[356132704,1741936944924,-160.8373606,0.00022082,3]
[356132705,1741936944933,-500.0,0.00022082,3]
[356132706,1741936944943,-164.0826394,0.00022082,7]
[356132707,1741936944955,-9.4516946,0.00022082,7]
[356132708,1741936944964,-500.0,0.00022082,3]
[356132709,1741936944975,-54.0183054,0.00022082,3]
[356132710,1741936944987,-445.9816946,0.00022082,3]
[356132711,1741936944996,-54.0183054,0.00022082,3]
[356132712,1741936945007,-445.9816946,0.00022082,3]
[356132713,1741936945017,-54.0183054,0.00022082,7]
[356132714,1741936945035,-119.5160286,0.00022082,7]
[356132715,1741936945045,-380.4839714,0.00022082,3]
[356132716,1741936945068,-119.5160286,0.00022082,3]
[356132717,1741936945078,-380.4839714,0.00022082,3]
[356132718,1741936945155,-119.5160286,0.00022082,3]
[356132719,1741936945166,-500.0,0.00022082,3]
[356132720,1741936945176,-62.6439714,0.00022082,3]
[356132721,1741936945188,-437.3560286,0.00022082,3]
[356132722,1741936945198,-62.6439714,0.00022082,3]
[356132723,1741936945210,-437.3560286,0.00022082,3]
[356132724,1741936945220,-62.6439714,0.00022082,3]
[356132725,1741936945231,-437.3560286,0.00022082,3]
[356132726,1741936945241,-62.6439714,0.00022082,3]
[356132727,1741936945254,-437.3560286,0.00022082,3]
[356132728,1741936945263,-73.5739714,0.00022082,3]
[356132729,1741936945275,-500.0,0.00022082,3]
[356132730,1741936945287,-496.6260286,0.00022082,3]
[356132731,1741936945297,-3.3739714,0.00022082,3]
[356132732,1741936945313,-500.0,0.00021917,3]
[356132733,1741936945323,-115.94,0.00022082,3]
[356132734,1741936945335,-380.6860286,0.00022082,3]
[356132735,1741936945345,-119.3139714,0.00022082,3]
[356132736,1741936945357,-500.0,0.00022082,3]
[356132737,1741936945370,-500.0,0.00022082,3]
[356132738,1741936945381,-540.37,0.00022082,3]
[356132739,1741936945394,-375.6460286,0.00022082,3]
[356132740,1741936945404,-124.3539714,0.00022082,3]
[356132741,1741936945416,-500.0,0.00022082,3]
[356132742,1741936945428,-482.5660286,0.00022082,3]
[356132743,1741936945437,-17.4339714,0.00022082,3]
[356132744,1741936945449,-482.5660286,0.00022082,3]
[356132745,1741936945458,-27.3639714,0.00022082,3]
[356132746,1741936945469,-596.66,0.00022082,3]
[356132747,1741936945485,-333.6560286,0.00022082,3]
[356132748,1741936945495,-166.3439714,0.00022082,3]
[356132749,1741936945506,-333.6560286,0.00022082,3]
[356132750,1741936945516,-222.99113875,0.00022082,3]
[356132751,1741936945528,-277.00886125,0.00022082,3]
[356132752,1741936945538,-464.97113875,0.00022082,3]
[356132753,1741936945552,-35.02886125,0.00022082,3]
[356132754,1741936945561,-464.97113875,0.00022082,3]
[356132755,1741936945573,-35.02886125,0.00022082,3]
[356132756,1741936945583,-464.97113875,0.00022082,3]
[356132757,1741936945594,-284.56886125,0.00022082,3]
[356132758,1741936945604,-500.0,0.00022082,3]
[356132759,1741936945613,-435.79113875,0.00022082,3]
[356132760,1741936945625,-64.20886125,0.00022082,3]
[356132761,1741936945636,-435.07805101,0.00022082,3]
[356132762,1741936945647,-64.92194899,0.00022082,3]
[356132763,1741936945657,-435.07805101,0.00022082,3]
[356132764,1741936945707,-465.54194899,0.00022082,3]
[356132765,1741936945716,-34.45805101,0.00022082,3]
[356132766,1741936945737,-566.55,0.00022082,3]
[356132767,1741936945749,-500.0,0.00022082,3]
[356132768,1741936945762,-82.39194899,0.00022082,3]
[356132769,1741936945771,-417.60805101,0.00022082,3]
[356132770,1741936945783,-82.39194899,0.00022082,3]
[356132771,1741936945793,-354.897348,0.00022082,7]
[356132772,1741936945803,-62.71070301,0.00022082,7]
[356132773,1741936945814,-292.18664499,0.00022082,7]
[356132774,1741936945824,-207.81335501,0.00022082,3]
[356132775,1741936945840,-292.18664499,0.00022082,3]
[356132776,1741936945850,-322.65335501,0.00022082,3]
[356132777,1741936945862,-177.34664499,0.00022082,3]
[356132778,1741936945871,-322.65335501,0.00022082,3]
[356132779,1741936945882,-500.0,0.00022082,3]
[356132780,1741936945895,-85.01664499,0.00022082,3]
[356132781,1741936945905,-473.61335501,0.00022082,3]
[356132782,1741936945917,-500.0,0.00022082,3]
[356132783,1741936945929,-583.61,0.00022082,3]
[356132784,1741936945941,-194.31664499,0.00022082,3]
[356132785,1741936945950,-305.68335501,0.00022082,3]
[356132786,1741936945962,-353.84664499,0.00022082,3]
[356132787,1741936945972,-146.15335501,0.00022082,3]
[356132788,1741936945984,-353.84664499,0.00022082,3]
[356132789,1741936945995,-500.0,0.00022082,3]
[356132790,1741936946004,-13.79335501,0.00022082,3]
[356132791,1741936946016,-486.20664499,0.00022082,3]
[356132792,1741936946026,-13.79335501,0.00022082,3]
[356132793,1741936946038,-486.20664499,0.00022082,3]
[356132794,1741936946047,-13.79335501,0.00022082,3]
[356132795,1741936946058,-500.0,0.00022082,3]
[356132796,1741936946071,-124.30664499,0.00022082,3]
[356132797,1741936946080,-576.08,0.00022082,3]
[356132798,1741936946089,-500.0,0.00022082,3]
[356132799,1741936946099,-347.80335501,0.00022082,3]
[356132800,1741936946109,-152.19664499,0.00022082,3]
[356132801,1741936946119,-347.80335501,0.00022082,3]
[356132802,1741936946130,-273.76795896,0.00022082,3]
[356132803,1741936946139,-605.51,0.00022082,3]
[356132804,1741936946148,-474.74204104,0.00022082,3]
[356132805,1741936946159,-25.25795896,0.00022082,3]
[356132806,1741936946169,-474.74204104,0.00022082,3]
[356132807,1741936946180,-25.25795896,0.00022082,3]
[356132808,1741936946189,-474.74204104,0.00022082,3]
[356132809,1741936946199,-25.25795896,0.00022082,3]
[356132810,1741936946208,-474.74204104,0.00022082,3]
[356132811,1741936946219,-25.25795896,0.00022082,3]
[356132812,1741936946228,-474.74204104,0.00022082,3]
[356132813,1741936946240,-25.25795896,0.00022082,3]
[356132814,1741936946249,-474.74204104,0.00022082,7]
[356132815,1741936946260,-152.13729396,0.00022082,7]
[356132816,1741936946269,-347.86270604,0.00022082,3]
[356132817,1741936946282,-152.13729396,0.00022082,3]
[356132818,1741936946291,-347.86270604,0.00022082,7]
[356132819,1741936946303,-279.01662896,0.00022082,7]
[356132820,1741936946312,-26.54717085,0.00022082,3]
[356132821,1741936946323,-473.45282915,0.00022082,3]
[356132822,1741936946332,-26.54717085,0.00022082,3]
[356132823,1741936946343,-529.42,0.00022082,3]
[356132824,1741936946355,-500.0,0.00022082,3]
[356132825,1741936946366,-214.55282915,0.00022082,3]
[356132826,1741936946375,-360.79717085,0.00022082,2]
[356132827,1741936946387,-139.20282915,0.00022082,2]
[356132828,1741936946397,-360.79717085,0.00022082,3]
[356132829,1741936946408,-500.0,0.00022082,3]
[356132830,1741936946419,-236.59282915,0.00022082,3]